bitfinex/quotes_ETHUSD_20241001
["timestamp","ask_amount","ask_price","bid_price","bid_amount"]
[1727798429999,0.05,2526.7,2526.2,0.8279]
[1727798430351,0.05,2526.6,2526.5,3.95804]
[1727798430545,0.05,2526.6,2526.5,0.06889791]
[1727798430851,0.05,2526.6,2526.5,7.50804]
[1727798431152,0.05,2526.7,2526.6,0.55]
[1727798431452,0.05,2526.7,2526.4,3.0]
[1727798431741,0.05,2526.7,2526.4,6.95805]
[1727798431940,0.05,2526.7,2526.4,10.9850173]
[1727798432142,19.63,2526.6,2526.4,3.0]
[1727798432347,19.63,2526.6,2526.1,3.95857]
[1727798432348,0.1,2526.4,2526.1,3.95857]
[1727798432533,0.05,2526.4,2526.0,0.55]
[1727798432734,19.58,2526.5,2526.3,3.95835]
[1727798433053,19.58,2526.5,2526.2,3.9584]
[1727798433054,0.05,2526.4,2526.2,3.9584]
[1727798433369,0.05,2526.3,2526.2,6.95851]
[1727798433513,19.63,2526.3,2526.2,6.95851]
[1727798433713,19.63,2526.3,2526.2,3.95851]
[1727798433714,19.58,2526.3,2526.2,3.95851]
[1727798433928,19.63,2526.3,2526.2,3.95851]
[1727798434332,19.63,2526.3,2525.9,7.78684]
[1727798434333,19.63,2526.3,2525.9,3.8279]
[1727798434635,19.58,2526.2,2526.1,6.95862]
[1727798434828,19.63,2526.2,2526.1,6.95862]
[1727798435152,19.58,2526.2,2526.1,6.95862]
[1727798435362,19.58,2526.2,2526.1,7.03778273]
[1727798435864,0.05,2526.0,2525.6,0.8279]
[1727798436015,19.58,2525.9,2525.6,0.8279]
[1727798436224,19.58,2525.9,2525.8,3.95914]
[1727798436710,0.05,2525.8,2525.7,3.95929]
[1727798436915,0.1,2525.8,2525.7,3.95929]
[1727798437116,0.05,2525.8,2525.7,3.95929]
[1727798437349,0.1,2525.8,2525.7,3.95929]
[1727798437559,0.05,2525.8,2525.7,3.95929]
[1727798437920,0.1,2525.8,2525.7,4.01257819]
[1727798438465,0.1,2525.8,2525.7,3.95929]
[1727798438649,19.58,2525.9,2525.7,4.50929]
[1727798438862,11.30667,2527.4,2525.7,4.50929]
[1727798438863,0.1,2526.6,2525.8,1.45706939]
[1727798439159,7.35,2527.7,2525.8,1.45706939]
[1727798439160,0.05,2527.0,2526.9,3.95741]
[1727798439348,0.1,2527.0,2526.9,4.03654492]
[1727798439862,19.58,2527.0,2526.6,3.95776]
[1727798440174,0.1,2526.9,2526.8,3.95756]
[1727798440773,19.58,2527.0,2526.9,4.50741]
[1727798440937,19.58,2527.0,2526.9,6.95741]
[1727798441145,0.05,2526.6,2526.4,3.95812]
[1727798441465,0.05,2526.6,2526.4,3.9581]
[1727798441638,0.05,2526.5,2526.4,3.9581]
[1727798441839,0.05,2526.4,2526.2,6.9584]
[1727798442022,0.05,2526.4,2526.2,3.9584]
[1727798442023,19.63,2526.3,2526.2,3.9584]
[1727798442225,19.63,2526.3,2526.1,4.78656]
[1727798442226,19.63,2526.3,2526.1,3.95866]
[1727798442419,19.63,2526.3,2526.2,3.95851]
[1727798443372,0.05,2526.2,2526.0,3.95882]
[1727798443664,19.58,2526.1,2526.0,6.95882]
[1727798444223,19.58,2526.1,2526.0,6.99875108]
[1727798444520,19.58,2526.1,2525.7,4.78713]
[1727798444521,0.05,2526.0,2525.8,3.0]
[1727798444852,0.05,2526.0,2525.7,3.95918]
[1727798444853,19.63,2525.9,2525.7,3.95918]
[1727798445050,19.58,2525.8,2525.7,3.95918]
[1727798445226,19.58,2525.8,2525.5,3.95952]
[1727798445618,19.58,2525.8,2525.3,0.8279]
[1727798445619,19.58,2525.8,2525.7,3.95929]
[1727798445750,19.58,2525.8,2525.7,4.84400545]
[1727798446077,19.58,2525.8,2525.7,8.66753455]
[1727798446282,19.58,2525.8,2525.7,7.78719]
[1727798446590,19.68,2525.9,2525.8,3.0]
[1727798446819,0.05,2525.7,2525.6,7.50944]
[1727798447144,0.05,2525.7,2525.6,0.55]
[1727798447359,0.05,2525.7,2525.5,6.95959]
[1727798447360,0.1,2525.7,2525.5,6.95959]
[1727798447792,0.1,2525.7,2525.6,3.95945]
[1727798447977,0.1,2525.7,2525.6,7.56222301]
[1727798448560,0.1,2525.7,2525.6,3.55]
[1727798448760,0.05,2525.4,2525.3,3.95982]
[1727798449091,0.05,2525.4,2525.3,3.95992]
[1727798449710,0.05,2525.4,2525.3,4.0391064]
[1727798450012,0.1,2525.7,2525.6,3.95945]
[1727798450163,0.1,2525.7,2525.5,3.95959]
[1727798450503,0.1,2525.5,2525.4,0.55]
[1727798450709,0.1,2525.5,2525.2,3.0]
[1727798450710,0.1,2525.5,2525.3,0.55]
[1727798451161,0.1,2525.5,2525.4,0.55]
[1727798451718,0.1,2525.5,2525.4,4.50976]
[1727798452008,0.1,2525.5,2525.4,0.55]
[1727798452361,0.1,2525.5,2525.4,4.50976]
[1727798453119,0.05,2525.5,2525.4,4.55219812]
[1727798453299,0.1,2525.5,2525.4,4.50976]
[1727798453709,0.05,2525.5,2525.4,4.50976]
[1727798454161,0.1,2525.5,2525.4,4.50976]
[1727798454373,0.1,2525.5,2525.4,7.50976]
[1727798454822,0.05,2525.7,2525.5,3.55]
[1727798455002,0.05,2525.7,2525.6,7.58862102]
[1727798455174,19.68,2525.7,2525.6,0.55]
[1727798455511,21.2304,2525.7,2525.5,4.50955]
[1727798455724,19.68,2525.7,2525.6,3.95945]
[1727798455875,19.68,2525.7,2525.6,0.55]
[1727798456071,19.68,2525.7,2525.6,4.50945]
[1727798456375,19.68,2525.7,2525.5,3.9596]
[1727798456376,19.68,2525.7,2525.5,4.50952]
[1727798457028,0.1,2525.7,2525.6,3.95945]
[1727798457229,0.1,2525.7,2525.6,4.50945]
[1727798457406,0.1,2525.7,2525.6,0.55]
[1727798458306,19.58,2525.9,2525.6,0.55]
[1727798458307,19.58,2525.9,2525.7,3.55]
[1727798458529,19.58,2525.9,2525.8,7.50914]
[1727798458721,0.05,2526.1,2526.0,3.95882]
[1727798458722,0.1,2526.1,2526.0,3.95882]
[1727798458934,0.1,2526.1,2526.0,4.50882]
[1727798458935,0.05,2526.1,2526.0,4.50882]
[1727798459135,0.05,2526.1,2526.0,7.53389918]
[1727798459340,0.05,2526.1,2526.0,7.54621917]
[1727798459629,0.05,2526.1,2526.0,7.50882]
[1727798459851,0.05,2526.1,2526.0,8.655598]
[1727798460995,0.05,2526.5,2526.1,3.0]
[1727798461198,0.05,2526.6,2526.5,3.55]
[1727798461433,0.05,2526.6,2526.5,0.55]
[1727798461631,1.5367,2526.9,2526.3,0.55]
[1727798461632,0.1,2526.5,2526.3,0.55]
[1727798461996,0.05,2526.5,2526.4,8.55733937]
[1727798462259,20.44646506,2526.8,2526.7,4.50773]
[1727798462554,0.05,2526.8,2526.7,4.50773]
[1727798463596,0.05,2527.0,2526.7,0.55]
[1727798463860,19.63,2527.1,2527.0,4.50726]
[1727798464134,0.05,2527.2,2527.1,4.5071]
[1727798464593,19.63,2527.5,2527.4,4.50663]
[1727798464744,0.05,2527.7,2527.6,0.9912]
[1727798464948,0.05,2528.0,2527.9,7.50585]
[1727798465271,0.05,2528.2,2527.9,7.50585]
[1727798465272,0.05,2528.2,2528.1,0.55]
[1727798465584,0.05,2528.0,2527.9,3.55]
[1727798465797,0.1,2528.4,2528.2,3.95524]
[1727798465946,0.1,2528.4,2528.1,1.5412]
[1727798466281,0.1,2528.4,2528.3,0.55]
[1727798466438,0.1,2528.4,2528.3,4.50522]
[1727798467097,0.05,2528.4,2528.3,4.58431118]
[1727798467395,0.1737391,2528.6,2528.5,3.55]
[1727798467396,0.2237391,2528.6,2528.5,3.55]
[1727798467557,0.2237391,2528.6,2528.5,4.50491]
[1727798467763,0.1737391,2528.6,2528.5,3.55]
[1727798467964,0.2237391,2528.6,2528.5,3.55]
[1727798468160,0.2237391,2528.6,2528.5,0.55]
[1727798468362,0.2237391,2528.6,2528.5,3.55]
[1727798468561,0.1,2528.4,2528.3,0.55]
[1727798468801,0.05,2527.7,2527.4,3.95653]
[1727798468963,0.05,2527.6,2527.5,3.95647]
[1727798469166,0.05,2527.6,2527.2,0.9912]
[1727798469472,0.05,2527.4,2527.3,3.95679]
[1727798469674,0.05,2527.4,2527.2,4.94803]
[1727798469891,0.05,2527.2,2527.0,3.95716]
[1727798470048,0.05,2527.2,2526.9,0.9912]
[1727798470049,0.05,2527.1,2526.9,4.94849]
[1727798470258,0.05,2527.1,2526.8,3.95741]
[1727798470445,0.05,2526.7,2526.6,3.9578]
[1727798470905,19.63,2527.3,2526.6,3.9578]
[1727798470906,0.05,2527.0,2526.9,3.95741]
[1727798471048,0.05,2527.2,2527.1,3.9571]
[1727798471248,0.05,2527.5,2527.3,3.95679]
[1727798471249,0.05,2527.4,2527.3,3.95679]
[1727798471450,0.05,2527.5,2527.4,3.95663]
[1727798471702,0.05,2527.7,2527.2,3.95682]
[1727798471703,0.05,2527.6,2527.2,3.95682]
[1727798471941,0.05,2527.6,2527.5,6.95647]
[1727798472353,0.05,2527.6,2527.5,7.50647]
[1727798472549,0.05,2527.7,2527.6,4.50632]
[1727798473993,0.05,2527.7,2527.6,0.55]
[1727798474204,19.63,2528.1,2527.4,3.0]
[1727798474205,0.05,2527.5,2527.4,0.55]
[1727798474351,0.05,2527.5,2526.6,0.791582]
[1727798474352,0.05,2527.1,2526.7,3.95767]
[1727798474560,0.05,2527.1,2526.8,3.95756]
[1727798474561,19.68,2527.1,2526.8,3.95756]
[1727798474797,0.05,2526.9,2526.7,0.9912]
[1727798474994,19.63,2526.8,2526.4,0.9912]
[1727798475166,0.1,2526.7,2526.2,3.95842]
[1727798475506,0.1,2526.7,2525.8,4.95023]
[1727798475507,0.1,2526.2,2525.8,4.95023]
[1727798475730,0.1,2526.0,2525.6,3.95939]
[1727798475998,0.1,2526.0,2525.6,3.95935]
[1727798476204,0.05,2526.0,2525.8,3.95912]
[1727798476497,0.1,2526.0,2525.6,4.454395]
[1727798476804,0.1,2526.0,2525.7,3.0]
[1727798477303,0.1,2525.8,2525.5,0.9912]
[1727798477612,0.05,2525.6,2525.2,4.95117]
[1727798477902,0.05,2525.6,2525.5,3.95961]
[1727798478116,0.1,2525.8,2525.6,3.95932]
[1727798478260,0.1,2525.8,2525.7,3.95929]
[1727798478460,0.1,2525.8,2525.7,0.07917109]
[1727798478664,0.1,2525.8,2525.7,4.03846109]
[1727798479500,0.05,2525.8,2525.7,7.58846109]
[1727798479667,19.68,2526.0,2525.8,0.55]
[1727798479668,19.73,2526.0,2525.8,0.55]
[1727798479872,19.73,2526.0,2525.7,8.3882572]
[1727798479873,0.05,2526.0,2525.9,4.58814863]
[1727798480703,0.05,2526.0,2525.9,7.50898]
[1727798481016,0.1,2526.0,2525.9,0.55]
[1727798481191,0.1,2526.0,2525.8,3.55]
[1727798481359,0.1,2526.0,2525.8,0.55]
[1727798481763,0.1,2526.0,2525.8,4.50911]
[1727798482004,0.05,2526.0,2525.9,7.50898]
[1727798482371,0.1,2526.0,2525.9,3.55]
[1727798482568,0.1,2526.0,2525.9,7.50898]
[1727798482783,0.1,2526.0,2525.9,3.55]
[1727798482988,0.1,2526.0,2525.9,7.50898]
[1727798483197,0.1,2526.0,2525.9,3.55]
[1727798483428,0.1,2526.0,2525.8,0.55]
[1727798483632,0.1,2526.0,2525.9,3.55]
[1727798484704,0.1,2526.0,2525.9,7.50898]
[1727798486007,0.05,2526.0,2525.9,7.50898]
[1727798488150,19.63,2526.6,2526.5,3.95804]
[1727798488368,19.63,2526.6,2526.5,7.50804]
[1727798488369,0.1,2526.6,2526.5,7.50804]
[1727798488572,19.63,2526.7,2526.6,3.95788]
[1727798488749,19.68,2526.7,2526.6,9.050289]
[1727798489153,0.05,2527.0,2526.9,4.50741]
[1727798489375,0.05,2527.0,2526.9,7.50741]
[1727798489737,0.05,2527.2,2527.1,7.5071]
[1727798489999,3.95595,2527.9,2527.1,7.5071]
[1727798490000,0.05,2527.6,2527.5,4.50647]
[1727798490142,0.05,2527.8,2527.7,4.50616]
[1727798490343,0.05,2527.8,2527.7,0.55]
[1727798490787,0.05,2527.7,2527.6,0.55]
[1727798490995,19.68,2527.7,2527.6,0.55]
[1727798491294,19.68,2527.7,2527.1,0.9912]
[1727798491295,0.1,2527.4,2527.3,0.55]
[1727798491590,0.1,2526.9,2526.8,6.95757]
[1727798491756,0.1,2526.9,2526.8,3.95757]
[1727798491960,0.05,2526.7,2526.6,3.95776]
[1727798492346,0.05,2526.7,2526.6,4.749338]
[1727798492774,0.05,2526.7,2526.6,5.299338]
[1727798493144,0.05,2526.7,2526.6,8.299338]
[1727798493649,5.92928,2527.7,2527.4,3.55]
[1727798493650,0.1,2527.7,2527.4,3.55]
[1727798493871,0.1,2527.7,2527.6,7.50632]
[1727798496115,19.63,2528.4,2527.6,7.50632]
[1727798496116,0.05,2527.9,2527.8,7.506]
[1727798496389,1.5889,2528.4,2528.1,4.50553]
[1727798496390,0.05,2528.2,2528.1,4.50553]
[1727798496592,0.05,2528.2,2528.1,7.50553]
[1727798496801,0.05,2528.4,2528.1,7.50553]
[1727798496802,0.1,2528.4,2528.1,7.50553]
[1727798497001,0.1,2528.4,2528.3,7.50522]
[1727798497301,20.145,2528.9,2528.5,3.55]
[1727798497302,0.1737391,2528.6,2528.5,3.55]
[1727798498183,0.1737391,2528.6,2528.5,7.50491]
[1727798498502,0.1737391,2528.6,2528.5,3.55]
[1727798498667,0.1737391,2528.6,2528.4,0.55]
[1727798498871,0.1737391,2528.6,2528.4,4.50507]
[1727798499048,0.1737391,2528.6,2528.5,3.0]
[1727798499254,0.1737391,2528.6,2528.5,7.50491]
[1727798499560,0.1737391,2528.6,2528.5,3.55]
[1727798500004,0.1737391,2528.6,2528.5,0.55]
[1727798500296,0.05,2528.5,2528.4,7.50494]
[1727798501083,0.05,2528.5,2528.4,8.650954]
[1727798501309,0.1737391,2528.6,2528.5,7.50491]
[1727798501752,0.2237391,2528.6,2528.5,7.50491]
[1727798502293,0.2237391,2528.6,2528.5,0.55]
[1727798502596,0.2237391,2528.6,2528.3,3.0]
[1727798502597,0.1,2528.4,2528.3,3.0]
[1727798503357,0.1,2528.1,2528.0,3.95564]
[1727798503656,0.1,2528.1,2527.5,3.95639]
[1727798503657,0.05,2527.7,2527.6,3.9562]
[1727798503965,0.05,2527.7,2527.6,4.846585]
[1727798504168,0.05,2528.0,2527.9,3.95585]
[1727798504795,0.05,2528.0,2527.9,4.50585]
[1727798507003,0.05,2528.0,2527.9,7.50585]
[1727798507503,19.68,2528.0,2527.9,7.50585]
[1727798507653,19.68,2528.0,2527.9,8.652035]
[1727798508510,19.63,2528.0,2527.9,8.652035]
[1727798508796,20.52357984,2528.0,2527.9,9.643235]
[1727798509496,0.89357984,2528.0,2527.9,9.643235]
[1727798512558,0.89357984,2528.0,2527.9,19.930217]
[1727798514000,0.89357984,2528.0,2527.9,9.643235]
[1727798514364,0.89357984,2528.0,2527.9,28.417439]
[1727798516861,0.89357984,2528.0,2527.9,26.526548]
[1727798517119,0.89357984,2528.0,2527.9,16.98357]
[1727798517287,0.89357984,2528.0,2527.9,12.150435]
[1727798518275,0.58641177,2528.0,2527.9,12.150435]
[1727798518490,0.43794121,2528.0,2527.9,12.150435]
[1727798518694,0.1237391,2528.6,2528.5,3.95491]
[1727798518873,0.1237391,2528.6,2528.5,8.395024]
[1727798519073,0.1737391,2528.6,2528.5,7.50491]
[1727798519675,1.7777391,2528.6,2528.5,6.95491]
[1727798520280,21.7077391,2528.6,2528.5,3.0]
[1727798520591,21.7077391,2528.6,2528.2,6.95538]
[1727798520592,0.05,2528.3,2528.2,6.95538]
[1727798521000,0.05,2528.2,2528.1,3.95552]
[1727798521201,0.05,2528.2,2527.9,5.101905]
[1727798521202,0.1,2528.0,2527.9,5.101905]
[1727798522220,0.1,2528.0,2527.9,3.0]
[1727798522426,0.05,2527.6,2527.5,3.95635]
[1727798522607,0.05,2527.8,2527.7,3.95616]
[1727798522812,0.05,2528.0,2527.7,4.94736]
[1727798523006,0.05,2528.3,2528.2,3.95538]
[1727798523597,0.05,2528.7,2528.5,3.95491]
[1727798523917,0.615,2528.9,2528.5,7.50491]
[1727798524424,0.615,2528.9,2528.5,8.49611]
[1727798524575,0.615,2528.9,2528.5,24.200581]
[1727798524576,0.515,2528.9,2528.5,24.200581]
[1727798524931,0.01612409,2528.6,2528.5,27.0161431]
[1727798525217,0.515,2528.9,2528.8,8.49564]
[1727798525406,0.515,2528.9,2528.8,36.787011]
[1727798525776,0.515,2528.9,2528.8,11.79464]
[1727798527146,0.565,2528.9,2528.8,6.95444]
[1727798527329,0.515,2528.9,2528.8,10.915541]
[1727798527620,0.515,2528.9,2528.8,8.045341]
[1727798527621,0.565,2528.9,2528.8,8.045341]
[1727798527981,0.615,2528.9,2528.8,8.045341]
[1727798529197,0.515,2528.9,2528.8,9.586541]
[1727798529535,0.565,2528.9,2528.8,9.586541]
[1727798529680,0.615,2528.9,2528.8,8.595341]
[1727798529882,0.615,2528.9,2528.8,6.95444]
[1727798531210,0.615,2528.9,2528.8,6.9805907]
[1727798531211,0.565,2528.9,2528.8,6.9805907]
[1727798531391,0.565,2528.9,2528.8,7.583516]
[1727798532005,0.565,2528.9,2528.8,3.0]
[1727798532208,0.1,2528.7,2528.6,3.0]
[1727798532412,0.1,2528.4,2528.3,3.95512]
[1727798532637,0.05,2528.4,2528.3,4.00600419]
[1727798532942,0.1,2528.6,2528.5,3.95491]
[1727798533095,0.1,2528.6,2528.5,12.00548831]
[1727798533428,0.1,2528.6,2528.5,11.92641405]
[1727798533621,20.095,2528.9,2528.5,11.92641405]
[1727798533622,0.515,2528.9,2528.8,3.95444]
[1727798533796,0.515,2528.9,2528.8,7.50444]
[1727798533994,0.515,2528.9,2528.8,8.650341]
[1727798534232,0.515,2528.9,2528.8,11.83948]
[1727798535295,0.13077906,2528.9,2528.8,11.83948]
[1727798535514,20.12244801,2529.1,2529.0,7.50413]
[1727798535693,20.12244801,2529.1,2529.0,28.6004023]
[1727798535948,20.12244801,2529.1,2529.0,28.55818788]
[1727798536120,20.12244801,2529.1,2529.0,15.56315488]
[1727798538147,13.9303613,2529.1,2529.0,15.56315488]
[1727798538452,13.9303613,2529.1,2529.0,16.0287637]
[1727798538453,11.6265887,2529.1,2529.0,16.0287637]
[1727798538619,11.6265887,2529.1,2529.0,18.30000253]
[1727798538994,5.61027827,2529.1,2529.0,18.30000253]
[1727798539194,1.90276467,2529.1,2529.0,21.16998845]
[1727798539434,0.05,2530.2,2530.1,3.95241]
[1727798539640,0.05,2530.2,2530.1,7.347651]
[1727798539893,0.05,2530.3,2530.2,6.95225]
[1727798540461,0.05,2530.4,2530.3,6.9521]
[1727798540679,0.05,2530.4,2530.3,7.45206067]
[1727798541098,0.05,2530.5,2530.3,8.00206067]
[1727798541403,0.05,2530.5,2530.4,7.50194]
[1727798541555,0.05,2530.5,2530.4,7.58095716]
[1727798541947,1.5154,2530.8,2530.6,7.50163]
[1727798541948,0.05,2530.7,2530.6,7.50163]
[1727798542194,0.05,2530.7,2530.6,7.58064091]
[1727798543195,0.05,2531.0,2530.9,7.50116]
[1727798543406,0.2237391,2531.2,2531.1,3.95085]
[1727798543693,0.2237391,2531.2,2531.1,7.57985071]
[1727798544501,0.1737391,2531.2,2531.1,7.57985071]
[1727798545083,0.1237391,2531.2,2531.1,7.57985071]
[1727798545397,0.1237391,2531.2,2531.1,19.4190935]
[1727798545549,0.1237391,2531.2,2531.1,19.34009279]
[1727798546653,0.1237391,2531.2,2531.1,11.82084379]
[1727798547185,0.1237391,2531.2,2531.1,10.58014379]
[1727798547417,0.1237391,2531.2,2531.1,7.50085]
[1727798548895,0.1237391,2531.2,2531.1,4.50085]
[1727798548896,0.1737391,2531.2,2531.1,4.50085]
[1727798549990,1.7121391,2531.2,2531.1,4.50085]
[1727798550323,0.1737391,2531.2,2531.1,10.799657]
[1727798550505,0.1737391,2531.2,2531.1,7.50085]
[1727798551124,0.1737391,2531.2,2531.1,8.646034]
[1727798551424,0.1737391,2531.2,2531.1,6.95085]
[1727798551625,1.7121391,2531.2,2531.1,6.95085]
[1727798552320,1.7121391,2531.2,2530.9,3.0]
[1727798552321,1.7158,2531.0,2530.9,3.0]
[1727798552685,1.7158,2531.0,2530.6,3.95153]
[1727798552686,1.7158,2530.7,2530.6,3.95153]
[1727798552886,0.05,2529.9,2529.8,3.95288]
[1727798553086,0.05,2529.9,2529.8,4.743471]
[1727798553301,1.6158,2530.1,2530.0,3.95256]
[1727798553302,0.05,2530.1,2530.0,3.95256]
[1727798553489,0.05,2530.1,2530.0,4.03158871]
[1727798553708,0.1,2530.1,2530.0,3.95256]
[1727798553917,1.7158,2530.1,2529.9,3.95262]
[1727798554306,1.7158,2530.1,2529.8,3.95283]
[1727798554509,0.1,2529.9,2529.8,3.95283]
[1727798554730,0.05,2529.9,2529.8,4.03162994]
[1727798554930,0.1,2529.9,2529.8,4.03162994]
[1727798555253,0.05,2529.9,2529.8,7.03162994]
[1727798555537,0.1,2530.3,2530.2,3.95225]
[1727798555694,1.6147,2530.5,2530.4,6.95194]
[1727798555695,0.05,2530.5,2530.4,6.95194]
[1727798556044,0.05,2530.5,2530.4,7.50194]
[1727798556045,0.1,2530.5,2530.4,7.50194]
[1727798556701,0.1,2530.5,2530.4,7.58096583]
[1727798557140,0.05,2530.8,2530.7,0.55]
[1727798557434,0.1,2530.8,2530.7,7.50147]
[1727798558093,0.05,2530.8,2530.7,9.041954]
[1727798558319,1.6147,2531.1,2530.7,5.090484]
[1727798558581,1.6147,2531.1,2530.9,7.50114]
[1727798558582,0.1,2531.0,2530.9,7.50114]
[1727798558791,0.05,2531.1,2531.0,7.501]
[1727798558932,0.05,2531.1,2531.0,8.646214]
[1727798559428,0.1237391,2531.2,2531.1,7.50085]
[1727798559658,0.1237391,2531.2,2531.1,7.57984323]
[1727798560173,0.1237391,2531.2,2531.1,21.23705923]
[1727798560478,0.1237391,2531.2,2531.1,21.158066]
[1727798560630,0.1237391,2531.2,2531.1,21.64479755]
[1727798560980,0.01688191,2531.2,2531.1,23.22456795]
[1727798561135,0.1,2531.8,2531.7,7.49991]
[1727798561336,1.6566,2531.8,2531.7,7.49991]
[1727798561653,1.6566,2531.8,2531.7,6.94991]
[1727798561863,1.6566,2531.8,2531.7,3.0]
[1727798562188,0.1,2531.6,2531.5,6.95014]
[1727798562466,0.1,2531.6,2531.5,7.02913108]
[1727798562665,0.1,2531.6,2531.4,3.95033]
[1727798563181,0.1,2531.6,2531.2,3.95061]
[1727798563182,0.1,2531.3,2531.2,3.95061]
[1727798563483,1.6743,2531.3,2531.2,3.95061]
[1727798563774,1.6743,2531.3,2531.2,4.02961598]
[1727798563991,0.1,2531.3,2531.2,4.02961598]
[1727798564133,0.05,2531.3,2531.2,5.2932704]
[1727798564533,0.05,2531.5,2531.4,3.95038]
[1727798564534,0.1,2531.5,2531.4,3.95038]
[1727798564734,0.05,2531.5,2531.4,8.04497558]
[1727798564960,0.05,2531.5,2531.4,7.96598882]
[1727798565164,0.05,2531.5,2531.4,9.63250526]
[1727798565380,0.05,2531.5,2531.4,9.16689644]
[1727798565880,0.1,2531.5,2531.4,7.50038]
[1727798566243,21.3324,2531.5,2531.3,3.95053]
[1727798566440,2.13324,2531.4,2531.3,3.95053]
[1727798566976,21.3324,2531.5,2531.3,3.95053]
[1727798567189,21.3324,2531.5,2531.4,3.95038]
[1727798567974,21.3324,2531.5,2531.4,4.50038]
[1727798569393,0.05,2530.6,2530.5,3.95178]
[1727798571536,0.05,2530.6,2530.5,6.95178]
[1727798572049,0.05,2530.7,2530.3,3.95206]
[1727798572050,0.05,2530.4,2530.3,3.95207]
[1727798572249,0.1,2530.4,2530.3,3.95207]
[1727798572854,0.05,2530.7,2530.6,3.95163]
[1727798573057,0.05,2530.8,2530.7,3.95147]
[1727798573382,0.05,2530.8,2530.7,8.236076]
[1727798573745,0.05,2530.9,2530.8,7.50131]
[1727798574448,1.5789,2531.5,2531.0,3.951]
[1727798574449,0.05,2531.1,2531.0,3.951]
[1727798574807,19.75,2531.7,2531.3,3.0]
[1727798574808,0.05,2531.6,2531.3,3.0]
[1727798574963,0.05,2531.6,2531.5,7.50022]
[1727798576582,0.05,2531.6,2531.5,7.57464801]
[1727798577381,0.05,2531.6,2531.5,7.50022]
[1727798579406,0.05,2531.4,2531.3,7.90097]
[1727798579926,0.1,2531.5,2531.4,3.95038]
[1727798580186,0.1,2531.5,2531.4,5.135515]
[1727798580391,19.85,2531.7,2531.6,3.95007]
[1727798580744,1.6497,2531.5,2531.4,3.9503]
[1727798580991,1.5997,2531.5,2531.4,3.9503]
[1727798581199,1.6497,2531.5,2531.4,3.9503]
[1727798581406,0.1,2531.5,2531.4,4.8193783]
[1727798581611,0.05,2531.5,2531.4,4.8193712]
[1727798581905,0.05,2531.7,2531.6,3.95007]
[1727798581906,0.1,2531.7,2531.6,3.95007]
[1727798582128,0.05,2531.7,2531.6,7.02904831]
[1727798582262,0.1,2532.1,2531.9,3.55]
[1727798582602,0.1,2532.1,2532.0,7.57840815]
[1727798582603,0.05,2532.1,2532.0,7.57840815]
[1727798582800,0.05,2532.7,2532.4,7.49882]
[1727798582801,0.05,2532.5,2532.4,7.49882]
[1727798584057,0.05,2532.5,2532.4,7.57759116]
[1727798584663,0.05,2532.5,2532.4,8.49002]
[1727798584877,0.05,2532.5,2532.4,9.733917]
[1727798585562,0.05,2532.5,2532.4,17.445116]
[1727798586370,0.05,2532.5,2532.4,8.192717]
[1727798586585,0.05,2532.5,2532.4,6.94882]
[1727798587990,0.05,2532.5,2532.4,7.49882]
[1727798589283,0.05,2532.5,2532.4,6.94882]
[1727798589484,0.05,2532.4,2532.3,3.94895]
[1727798589681,0.05,2531.7,2531.6,5.04781055]
[1727798589924,0.1,2531.7,2531.6,5.04781055]
[1727798590105,0.1,2531.7,2531.6,3.95007]
[1727798590324,0.1,2531.7,2530.9,3.9511]
[1727798590325,0.05,2531.0,2530.9,3.9511]
[1727798590501,0.1,2531.0,2530.9,3.9511]
[1727798590682,1.69,2531.0,2530.9,3.9511]
[1727798591032,0.1,2530.8,2529.9,3.95264]
[1727798591345,0.1,2530.0,2529.9,3.95264]
[1727798591819,0.1,2530.0,2529.9,8.90343179]
[1727798591994,0.05,2530.0,2529.9,8.876401]
[1727798592195,0.05,2530.0,2529.9,9.3032087]
[1727798592398,0.05,2530.0,2529.9,10.62881557]
[1727798592628,0.05,2530.0,2529.9,13.62881557]
[1727798592833,0.05,2530.0,2529.9,14.17881557]
[1727798593042,0.05,2530.4,2530.3,7.5021]
[1727798594330,0.05,2530.5,2530.4,7.50194]
[1727798594531,0.05,2530.6,2530.5,7.50178]
[1727798594730,0.05,2530.6,2530.5,7.53187989]
[1727798595019,0.05,2530.6,2530.5,7.95868759]
[1727798595188,0.05,2530.6,2530.5,7.50178]
[1727798595630,0.05,2530.6,2530.5,8.99178078]
[1727798596198,0.05,2530.6,2530.5,6.95178]
[1727798596503,0.05,2529.7,2529.5,3.95321]
[1727798596705,0.05,2529.7,2529.6,3.95319]
[1727798598360,0.05,2529.7,2529.6,6.95319]
[1727798598518,0.05,2529.7,2529.6,8.04383]